{"text_format":"1","workbook":"xlsx","n_sheets":6,"sheets":["EXEMPLO BÁSICO","EXEMPLO 1","EXEMPLO 2","EXEMPLO 3","EXEMPLO 4","EXEMPLO 5"],"not_rendered":{"charts":0,"images":0,"macros":1,"external_links":0,"defined_names":1,"comments":0,"pivot_tables":0},"unopened":[],"bounds":{"document_bytes":16777216,"sheet_cells":100000,"rows_first":2000,"rows_last":500,"rows_between":2000,"halvings":0,"cell_chars":16384,"cell_head_chars":4096},"cells_cut":0,"cells_raw":0,"read":"whole","date_system":"1900"}

{"sheet":"EXEMPLO BÁSICO","index":0,"n_rows":2,"n_cols":2,"rows_kept":2,"cut":false,"hidden":false,"merged":[]}
["TEXTO","FUNÇÃO ESQUERDA"]
["Excel Easy",{"$f":"LEFT(A2,5)","v":"Excel"}]

{"sheet":"EXEMPLO 1","index":1,"n_rows":8,"n_cols":2,"rows_kept":8,"cut":false,"hidden":false,"merged":[]}
["Mês","Mês abreviado"]
["Janeiro",{"$f":"LEFT(A2,3)","v":"Jan"}]
["Fevereiro",{"$f":"LEFT(A3,3)","v":"Fev"}]
["Março","Mar"]
["Abril","Abr"]
["Maio","Mai"]
["Junho","Jun"]
["Julho","Jul"]

{"sheet":"EXEMPLO 2","index":2,"n_rows":16,"n_cols":9,"rows_kept":16,"cut":false,"hidden":false,"merged":[]}
["Cidade/Estado","Cidades"]
["Campinas/SP",{"$f":"LEFT(A2,SEARCH(\"/\",A2)-1)","v":"Campinas"}]
["Rio de Janeiro/RJ",{"$f":"LEFT(A3,SEARCH(\"/\",A3)-1)","v":"Rio de Janeiro"}]
["Florianópolis/SC","Florianópolis"]
["Porto Seguro/BA","Porto Seguro"]
["São Paulo/SP","São Paulo"]
["Viçosa/MG","Viçosa"]
[]
[]
[]
[]
[]
[]
[]
[]
[null,null,null,null,null,null,null,null,"v"]

{"sheet":"EXEMPLO 3","index":3,"n_rows":7,"n_cols":2,"rows_kept":7,"cut":false,"hidden":false,"merged":[]}
["Nome e sobrenome","Nome"]
["Sylvester Stallone",{"$f":"LEFT(A2,SEARCH(\" \",A2)-1)","v":"Sylvester"}]
["Arnold Schwarzenegger",{"$f":"LEFT(A3,SEARCH(\" \",A3)-1)","v":"Arnold"}]
["Robert De Niro","Robert"]
["Leonardo DiCaprio","Leonardo"]
["Clint Eastwood","Clint"]
["Russell Crowe","Russell"]

{"sheet":"EXEMPLO 4","index":4,"n_rows":4,"n_cols":2,"rows_kept":4,"cut":false,"hidden":false,"merged":[]}
["Texto","Resultado"]
["campinas é uma cidade ",{"$f":"PROPER(LEFT(A2,1))&LOWER((RIGHT(A2,LEN(A2)-1)))","v":"Campinas é uma cidade "}]
["hoje é domingo",{"$f":"PROPER(LEFT(A3,1))&LOWER((RIGHT(A3,LEN(A3)-1)))","v":"Hoje é domingo"}]
["amanda tem dois irmãos","Amanda tem dois irmãos"]

{"sheet":"EXEMPLO 5","index":5,"n_rows":13,"n_cols":1,"rows_kept":13,"cut":false,"hidden":false,"merged":[]}
["Mês"]
["Jan"]
["Fev"]
["Mar"]
["Abr"]
["Mai"]
["Jun"]
["Jul"]
["Ago"]
["Set"]
["Out"]
["Nov"]
["Dez"]